bitfinex/quotes_BTCUSD_20240617
["timestamp","ask_amount","ask_price","bid_price","bid_amount"]
[1718660261647,0.95796188,66649.0,66648.0,0.009394]
[1718660261860,0.95896188,66649.0,66648.0,0.009394]
[1718660263932,0.551118,66649.0,66648.0,0.009394]
[1718660264545,0.56276976,66649.0,66648.0,0.009394]
[1718660264949,0.551118,66649.0,66648.0,0.02301324]
[1718660265149,0.551118,66649.0,66648.0,0.009394]
[1718660265528,0.550118,66649.0,66648.0,0.02301338]
[1718660265731,0.551118,66649.0,66648.0,0.01301338]
[1718660266208,0.150044,66647.0,66644.0,0.2804]
[1718660266383,0.250044,66647.0,66644.0,0.2804]
[1718660267344,0.1,66646.0,66644.0,0.2804]
[1718660268693,0.101,66646.0,66644.0,0.2804]
[1718660268890,0.001,66646.0,66644.0,0.2804]
[1718660269754,0.001,66646.0,66644.0,0.2834]
[1718660270516,0.151047,66646.0,66644.0,0.2834]
[1718660270705,0.1,66645.0,66644.0,0.2834]
[1718660271873,0.101,66645.0,66644.0,0.2834]
[1718660272383,0.001,66645.0,66644.0,0.2804]
[1718660272587,0.251048,66645.0,66644.0,0.2804]
[1718660272739,0.151048,66645.0,66644.0,0.2844]
[1718660273170,0.001,66645.0,66644.0,0.2844]
[1718660273373,0.001,66645.0,66644.0,0.2979725]
[1718660274127,0.151048,66645.0,66644.0,0.2979725]
[1718660274326,0.001,66645.0,66644.0,0.2979725]
[1718660275153,0.31244819,66645.0,66644.0,0.2979725]
[1718660275360,0.31244819,66645.0,66644.0,0.29791541]
[1718660276437,0.46249619,66645.0,66644.0,0.29791541]
[1718660278368,0.46249619,66645.0,66644.0,0.0175725]
[1718660279524,0.76259319,66645.0,66644.0,0.0175725]
[1718660280516,0.31244819,66645.0,66644.0,0.02592074]
[1718660280696,0.46249619,66645.0,66644.0,0.0175725]
[1718660281115,0.76259319,66645.0,66644.0,0.0175725]
[1718660283363,0.76259319,66645.0,66644.0,0.0185185]
[1718660283718,1.06269019,66645.0,66644.0,0.0185185]
[1718660287585,1.16004195,66645.0,66644.0,0.0185185]
[1718660287740,1.16004195,66645.0,66644.0,0.004946]
[1718660288411,1.20499092,66645.0,66644.0,0.004946]
[1718660288600,1.21664268,66645.0,66644.0,0.004946]
[1718660288801,1.16004195,66645.0,66644.0,0.004946]
[1718660289177,1.21664134,66645.0,66644.0,0.004946]
[1718660290565,1.51673834,66645.0,66644.0,0.004946]
[1718660290781,1.6694509,66645.0,66644.0,0.004946]
[1718660291022,2.0695479,66645.0,66644.0,0.004946]
[1718660291225,2.3382599,66645.0,66644.0,0.004946]
[1718660291423,2.17804734,66645.0,66644.0,0.004946]
[1718660291877,2.15342292,66645.0,66644.0,0.004946]
[1718660292024,2.15401193,66645.0,66644.0,0.004946]
[1718660292268,2.13054235,66645.0,66644.0,0.004946]
[1718660292864,2.13054235,66645.0,66644.0,0.000946]
[1718660293428,2.83708079,66645.0,66644.0,0.000946]
[1718660293633,2.48968526,66645.0,66644.0,0.000946]
[1718660293840,2.62415761,66645.0,66644.0,0.000946]
[1718660294251,2.4599727,66645.0,66644.0,0.001946]
[1718660294397,2.3829727,66645.0,66644.0,0.001946]
[1718660294808,2.40644506,66645.0,66644.0,0.001946]
[1718660295256,2.3829727,66645.0,66644.0,0.001946]
[1718660295436,2.45030364,66645.0,66644.0,0.001946]
[1718660296054,2.45037755,66645.0,66644.0,0.001946]
[1718660296261,2.47274729,66645.0,66644.0,0.001946]
[1718660297355,2.3829727,66645.0,66644.0,0.001946]
[1718660297527,2.37132094,66645.0,66644.0,0.001946]
[1718660298615,2.3829727,66645.0,66644.0,0.001946]
[1718660298830,2.4829727,66645.0,66644.0,0.001946]
[1718660299449,2.3829727,66645.0,66644.0,0.001946]
[1718660299663,2.4923667,66645.0,66644.0,0.001946]
[1718660299908,2.3923667,66645.0,66644.0,0.001946]
[1718660300320,2.54507926,66645.0,66644.0,0.001946]
[1718660300523,2.3923667,66645.0,66644.0,0.001946]
[1718660301381,2.50478757,66645.0,66644.0,0.001946]
[1718660301972,2.38071494,66645.0,66644.0,0.001946]
[1718660302589,2.3923667,66645.0,66644.0,0.001946]
[1718660303006,2.34096748,66645.0,66644.0,0.001946]
[1718660303220,2.54505776,66645.0,66644.0,0.001946]
[1718660304043,2.84515476,66645.0,66644.0,0.001946]
[1718660304253,2.95754926,66645.0,66644.0,0.001946]
[1718660304629,2.65745226,66645.0,66644.0,0.001946]
[1718660304841,2.75745226,66645.0,66644.0,0.001946]
[1718660305217,3.05754926,66645.0,66644.0,0.001946]
[1718660306451,2.75745226,66645.0,66644.0,0.001946]
[1718660306626,2.65745226,66645.0,66644.0,0.001946]
[1718660306780,3.15380814,66645.0,66644.0,0.001946]
[1718660306983,3.35390514,66645.0,66644.0,0.001946]
[1718660307201,2.95754926,66645.0,66644.0,0.001946]
[1718660307509,2.8048367,66645.0,66644.0,0.001946]
[1718660307710,3.30119258,66645.0,66644.0,0.001946]
[1718660307911,3.20119258,66645.0,66644.0,0.001946]
[1718660308230,2.9048367,66645.0,66644.0,0.001946]
[1718660308645,1.36220976,66639.0,66638.0,0.000935]
[1718660308853,1.60640041,66639.0,66638.0,0.000935]
[1718660309064,2.27266741,66639.0,66638.0,0.000935]
[1718660309696,2.92078802,66639.0,66638.0,0.000935]
[1718660309888,2.79846798,66639.0,66638.0,0.000935]
[1718660310522,1.66245976,66634.0,66629.0,0.2718]
[1718660310734,2.05937929,66634.0,66626.0,0.1243]
[1718660310943,1.75923229,66634.0,66626.0,0.1243]
[1718660311140,2.83121719,66634.0,66626.0,0.1243]
[1718660311589,2.72405889,66634.0,66626.0,0.1243]
[1718660311803,2.80975889,66634.0,66626.0,0.1243]
[1718660312016,2.80759837,66634.0,66626.0,0.1243]
[1718660313288,2.74017547,66634.0,66626.0,0.1243]
[1718660313500,2.73931382,66634.0,66626.0,0.1243]
[1718660313734,2.89802638,66634.0,66626.0,0.1243]
[1718660314346,2.75031382,66634.0,66626.0,0.1243]
[1718660318143,2.8014239,66634.0,66626.0,0.1243]
[1718660319175,2.84633972,66634.0,66626.0,0.1243]
[1718660319420,2.8014239,66634.0,66626.0,0.1243]
[1718660320476,2.777154,66634.0,66626.0,0.1243]
[1718660320637,2.98090132,66634.0,66626.0,0.1243]
[1718660321037,2.97969934,66634.0,66626.0,0.1243]
[1718660322663,2.97970335,66634.0,66626.0,0.1243]
[1718660323513,3.35019725,66634.0,66626.0,0.1243]
[1718660324307,3.65034425,66634.0,66626.0,0.1243]
[1718660324504,3.35019725,66634.0,66626.0,0.1243]
[1718660324820,2.97970335,66634.0,66626.0,0.1243]
[1718660325406,3.35019725,66634.0,66626.0,0.1243]
[1718660326123,2.40798475,66634.0,66633.0,0.290494]
[1718660326318,0.52687245,66634.0,66633.0,0.290494]
[1718660326520,0.1642437,66634.0,66633.0,0.290494]
[1718660326819,0.011,66634.0,66633.0,0.31258202]
[1718660327218,0.005,66634.0,66633.0,0.31258202]
[1718660327655,0.300103,66644.0,66633.0,0.31258202]
[1718660327656,0.300079,66649.0,66644.0,0.00834824]
[1718660327848,0.03428825,66646.0,66644.0,0.34707896]
[1718660328061,0.50897607,66658.0,66647.0,0.27114824]
[1718660328204,0.150031,66653.0,66647.0,0.27114824]
[1718660328414,0.300061,66653.0,66647.0,0.28499008]
[1718660328640,0.150037,66651.0,66647.0,0.28499008]
[1718660328846,0.150024,66656.0,66647.0,0.37069008]
[1718660329225,0.150038,66650.0,66647.0,0.37069008]
[1718660329431,0.01165176,66658.0,66647.0,0.28599008]
[1718660329632,0.150024,66656.0,66647.0,0.28599008]
[1718660330114,0.150024,66656.0,66647.0,0.28499008]
[1718660330115,0.1,66655.0,66647.0,0.28499008]
[1718660330287,0.00186,66648.0,66647.0,0.29199008]
[1718660330491,0.1,66655.0,66654.0,0.27114824]
[1718660330906,0.04489888,66669.0,66654.0,0.27114824]
[1718660330907,0.299989,66669.0,66658.0,0.00834824]
[1718660331081,0.060063,66670.0,66660.0,0.1502]
[1718660331289,0.29997,66674.0,66660.0,0.1502]
[1718660331290,0.149987,66673.0,66665.0,0.1225]
[1718660331481,0.149987,66673.0,66663.0,0.07593072]
[1718660331482,0.149987,66673.0,66671.0,0.1226]
[1718660331704,0.149987,66673.0,66672.0,0.1555]
[1718660331880,0.149987,66673.0,66672.0,0.16921144]
[1718660332099,0.01165176,66682.0,66672.0,0.16921144]
[1718660332100,0.299926,66684.0,66672.0,0.16921144]
[1718660332268,0.149985,66673.0,66672.0,0.16921144]
[1718660332479,0.299931,66682.0,66672.0,0.16384824]
[1718660332690,0.09389904,66686.0,66677.0,0.00834824]
[1718660333079,0.09389904,66686.0,66681.0,0.00834824]
[1718660333080,0.03384904,66686.0,66681.0,0.00834824]
[1718660333284,0.02753255,66699.0,66688.0,0.00834824]
[1718660333491,0.060037,66701.0,66692.0,0.00834824]
[1718660333721,0.00855,66705.0,66689.0,0.2706]
[1718660333722,0.449783,66699.0,66695.0,0.00834824]
[1718660333943,0.149928,66699.0,66696.0,0.27894824]
[1718660334164,0.308381,66705.0,66702.0,0.00834824]
[1718660334379,0.308381,66705.0,66704.0,0.00834824]
[1718660334380,0.00855,66705.0,66704.0,0.00834824]
[1718660334579,0.00855,66705.0,66704.0,0.28644824]
[1718660334781,0.00855,66705.0,66704.0,0.30017715]
[1718660335234,0.00855,66712.0,66711.0,0.00834824]
[1718660335447,0.00855,66712.0,66711.0,0.28644824]
[1718660335658,0.00855,66712.0,66711.0,0.30017534]
[1718660336242,0.158448,66712.0,66711.0,0.2918271]
[1718660336477,0.00855,66712.0,66711.0,0.2918271]
[1718660336657,0.00855,66712.0,66711.0,0.2948271]
[1718660337007,0.00855,66712.0,66711.0,0.2918271]
[1718660337417,0.00855,66712.0,66711.0,0.30317534]
[1718660337622,0.158448,66712.0,66711.0,0.29892819]
[1718660337852,0.159448,66712.0,66711.0,0.30492819]
[1718660338055,0.158448,66712.0,66711.0,0.29057995]
[1718660338274,0.00855,66712.0,66711.0,0.29892819]
[1718660338435,0.00955,66712.0,66711.0,0.30392819]
[1718660338640,0.00955,66712.0,66711.0,0.29257995]
[1718660338849,0.00855,66712.0,66711.0,0.28757995]
[1718660339064,0.00955,66712.0,66711.0,0.29757995]
[1718660339470,0.00955,66712.0,66711.0,0.29357995]
[1718660339668,0.459244,66712.0,66711.0,0.29357995]
[1718660339893,0.75904,66712.0,66711.0,0.29957995]
[1718660340295,0.75904,66712.0,66711.0,0.29357995]
[1718660340498,0.458244,66712.0,66711.0,0.28757995]
[1718660340698,0.459244,66712.0,66711.0,0.29457995]
[1718660340902,0.460244,66712.0,66711.0,0.29857995]
[1718660341103,1.059836,66712.0,66711.0,0.29857995]
[1718660341304,1.059836,66712.0,66711.0,0.29457995]
[1718660341305,0.75904,66712.0,66711.0,0.29457995]
[1718660341574,1.058836,66712.0,66711.0,0.2851]
[1718660341881,0.75904,66712.0,66711.0,0.29458001]
[1718660342034,0.75804,66712.0,66711.0,0.28758001]
[1718660342237,0.75804,66712.0,66711.0,0.29158001]
[1718660342238,0.75904,66712.0,66711.0,0.29158001]
[1718660342612,0.75904,66712.0,66711.0,0.29758001]
[1718660343223,0.75904,66712.0,66711.0,0.29158001]
[1718660343366,0.75904,66712.0,66711.0,0.29458001]
[1718660343957,1.058836,66712.0,66711.0,0.29458001]
[1718660344523,1.057836,66712.0,66711.0,0.29058001]
[1718660344688,1.057836,66712.0,66711.0,0.30292825]
[1718660344689,0.75804,66712.0,66711.0,0.30292825]
[1718660344886,0.75804,66712.0,66711.0,0.29458001]
[1718660345146,1.057836,66712.0,66711.0,0.29458001]
[1718660345933,1.357632,66712.0,66711.0,0.29458001]
[1718660346139,1.68338376,66712.0,66711.0,0.01648001]
[1718660346485,1.671732,66712.0,66711.0,0.004]
[1718660346716,1.671732,66712.0,66686.0,0.00834824]
[1718660346717,1.049615,66691.0,66686.0,0.00834824]
[1718660346918,0.299904,66688.0,66684.0,0.00834824]
[1718660347126,0.149956,66687.0,66685.0,0.42402888]
[1718660347532,0.299904,66688.0,66685.0,0.43237712]
[1718660347533,0.449869,66686.0,66685.0,0.43237712]
[1718660347749,0.2141,66696.0,66686.0,0.00834824]
[1718660347978,0.01165176,66702.0,66686.0,0.00834824]
[1718660347979,0.449862,66687.0,66686.0,0.00834824]
[1718660348194,0.74985,66680.0,66679.0,0.1156]
[1718660348401,1.04979,66680.0,66679.0,0.1156]
[1718660349236,0.74985,66680.0,66679.0,0.1156]
[1718660349404,0.75085,66680.0,66679.0,0.1226]
[1718660350042,0.85085,66680.0,66679.0,0.1226]
[1718660351143,1.15179,66680.0,66679.0,0.1226]
[1718660352486,0.85185,66680.0,66679.0,0.1226]
[1718660356555,0.85185,66680.0,66679.0,0.13216243]
[1718660356765,0.85185,66680.0,66679.0,0.13094824]
[1718660357182,0.85185,66680.0,66679.0,0.1226]
[1718660363714,0.85185,66680.0,66679.0,0.13094824]
[1718660363985,0.85185,66680.0,66679.0,0.1226]
[1718660364108,1.15179,66680.0,66679.0,0.1226]
[1718660364314,0.85185,66680.0,66679.0,0.1226]
[1718660366830,0.85185,66680.0,66679.0,0.007]
[1718660367836,1.15179,66680.0,66679.0,0.007]
[1718660368134,0.85185,66680.0,66679.0,0.007]
[1718660369938,1.15179,66680.0,66679.0,0.007]
[1718660371786,1.46338176,66680.0,66679.0,0.007]
[1718660372160,1.60835436,66680.0,66679.0,0.007]
[1718660372576,1.60835436,66680.0,66671.0,0.07593072]
[1718660372577,1.049916,66672.0,66671.0,0.07593072]
[1718660372776,1.364016,66672.0,66671.0,0.07593072]
[1718660372949,1.364016,66672.0,66671.0,0.08551552]
[1718660373165,1.364016,66672.0,66671.0,0.07593072]
[1718660373377,0.750017,66665.0,66664.0,0.2592]
[1718660373839,0.750017,66665.0,66664.0,0.26878607]
[1718660373989,0.750017,66665.0,66664.0,0.00958607]
[1718660374196,1.364124,66665.0,66664.0,0.08551679]
[1718660374623,1.364124,66665.0,66664.0,0.07593072]
[1718660374803,1.365124,66665.0,66664.0,0.08993072]
[1718660375199,1.365124,66665.0,66664.0,0.07593072]
[1718660375423,1.364124,66665.0,66664.0,0.07593072]
[1718660375659,1.065117,66665.0,66664.0,0.08793072]
[1718660376232,1.066117,66665.0,66664.0,0.08793072]
[1718660376553,0.851017,66665.0,66664.0,0.08793072]
[1718660376752,1.065117,66665.0,66664.0,0.08793072]
[1718660376984,1.066117,66665.0,66664.0,0.08793072]
[1718660377479,1.064117,66665.0,66664.0,0.07593072]
[1718660377782,1.067117,66665.0,66664.0,0.08551479]
[1718660378138,1.067117,66665.0,66664.0,0.07593072]
[1718660378348,1.064117,66665.0,66664.0,0.07686572]
[1718660378797,1.072117,66665.0,66664.0,0.07786572]
[1718660380208,1.064117,66665.0,66664.0,0.07686572]
[1718660380590,1.078117,66665.0,66664.0,0.07786572]
[1718660380976,1.071117,66665.0,66664.0,0.07786572]
[1718660381176,1.078117,66665.0,66664.0,0.07786572]
[1718660383959,1.078117,66665.0,66664.0,0.001935]
[1718660387442,0.949717,66665.0,66664.0,0.001935]
[1718660395848,0.864017,66665.0,66664.0,0.001935]
[1718660396050,0.949717,66665.0,66664.0,0.001935]
[1718660400824,0.64971,66665.0,66664.0,0.01028324]
[1718660401030,0.64971,66665.0,66664.0,0.001935]
[1718660401199,0.949717,66665.0,66664.0,0.001935]
[1718660401400,0.98993084,66665.0,66664.0,0.001935]
[1718660401643,0.83992784,66665.0,66664.0,0.001935]
[1718660402234,0.98993084,66665.0,66664.0,0.001935]
[1718660403664,0.98993084,66665.0,66664.0,0.01028324]
[1718660404650,0.98993084,66665.0,66664.0,0.001935]
[1718660405054,0.38991684,66665.0,66664.0,0.001935]
[1718660405259,0.23991384,66665.0,66664.0,0.243035]
[1718660405467,0.98993084,66665.0,66664.0,0.243035]
[1718660405665,0.98993084,66665.0,66664.0,0.25269118]
[1718660405862,0.98993084,66665.0,66664.0,0.243035]
[1718660406080,0.98293084,66665.0,66664.0,0.243035]
[1718660406283,0.68292384,66665.0,66664.0,0.243035]
[1718660406537,0.68092384,66665.0,66664.0,0.25168953]
[1718660406863,0.68592384,66665.0,66664.0,0.25168953]
[1718660407290,0.68592384,66665.0,66664.0,0.26003777]
[1718660407690,0.38591684,66665.0,66664.0,0.26003777]
[1718660408456,0.60022384,66665.0,66664.0,0.26003777]
[1718660408603,0.30021684,66665.0,66664.0,0.26003777]
[1718660408807,0.38591684,66665.0,66664.0,0.26003777]
[1718660409190,0.38591684,66665.0,66664.0,0.25038324]
[1718660409388,0.40926759,66665.0,66664.0,0.25038324]
[1718660409595,0.40926754,66665.0,66664.0,0.25038324]
[1718660411060,1.00928154,66665.0,66664.0,0.25038324]
[1718660411379,1.01013154,66665.0,66664.0,0.25038324]
[1718660411529,0.71012454,66665.0,66664.0,0.25038324]
[1718660413862,0.6699107,66665.0,66664.0,0.25038324]
[1718660414081,0.71078015,66665.0,66664.0,0.25038324]
[1718660414292,0.68742945,66665.0,66664.0,0.25038324]
[1718660414539,0.66990975,66665.0,66664.0,0.25038324]
[1718660414736,0.71066256,66665.0,66664.0,0.25038324]
[1718660428219,0.62496256,66665.0,66664.0,0.25038324]
[1718660428394,0.71066256,66665.0,66664.0,0.25038324]
[1718660429205,0.71066256,66665.0,66664.0,0.242035]
[1718660429411,0.71066256,66665.0,66664.0,0.00928324]
[1718660430959,0.71123426,66665.0,66664.0,0.00928324]
[1718660431148,0.62553426,66665.0,66664.0,0.00928324]
[1718660431302,0.71123426,66665.0,66664.0,0.00928324]
[1718660434124,0.75626449,66665.0,66664.0,0.00928324]
[1718660435694,0.75612292,66665.0,66664.0,0.00928324]
[1718660441457,0.75610224,66665.0,66664.0,0.00928324]
[1718660442077,0.75610611,66665.0,66664.0,0.00928324]
[1718660443451,0.75610423,66665.0,66664.0,0.00928324]
[1718660457212,0.75619,66665.0,66664.0,0.00928324]
[1718660460070,0.71115572,66665.0,66664.0,0.00928324]
[1718660461025,0.75620343,66665.0,66664.0,0.00928324]
[1718660461581,0.71494733,66665.0,66664.0,0.00928324]
[1718660463404,0.74923923,66665.0,66664.0,0.00928324]
[1718660464189,0.62924733,66665.0,66664.0,0.00928324]
[1718660464511,0.21989975,66665.0,66664.0,0.00928324]
[1718660465113,0.19655,66665.0,66664.0,0.00928324]
[1718660465330,0.19655,66665.0,66664.0,0.000935]
[1718660466425,0.11085,66665.0,66664.0,0.25178324]
[1718660466637,0.09655,66665.0,66664.0,0.37631174]
[1718660466835,0.09655,66665.0,66664.0,0.40751679]
[1718660467036,0.09655,66665.0,66664.0,0.38751679]
[1718660472580,0.09655,66665.0,66664.0,0.40751679]
[1718660476968,0.09655,66665.0,66664.0,0.38751679]
[1718660477301,0.01085,66665.0,66664.0,0.40751679]
[1718660477463,0.09655,66665.0,66664.0,0.40751679]
[1718660477665,0.01085,66665.0,66664.0,0.40751679]
[1718660477869,0.09655,66665.0,66664.0,0.38751679]
[1718660480743,0.09655,66665.0,66664.0,0.40751679]
[1718660481481,0.09655,66665.0,66664.0,0.38751679]
[1718660481682,0.01085,66665.0,66664.0,0.85753479]
[1718660481899,0.09655,66665.0,66664.0,0.85753479]
[1718660482328,0.01085,66665.0,66664.0,0.85753479]
[1718660482841,0.00585,66665.0,66664.0,0.85753479]
[1718660483089,0.00085,66665.0,66664.0,0.85753479]
[1718660483203,0.00085,66665.0,66664.0,0.85953479]
[1718660483402,0.00085,66665.0,66664.0,0.84353479]
[1718660484706,0.00085,66665.0,66664.0,0.71900629]
[1718660484910,0.00085,66665.0,66664.0,0.84351814]
[1718660486408,0.00085,66665.0,66664.0,0.86351814]
[1718660486817,0.00085,66665.0,66664.0,1.31625902]
[1718660487038,0.00085,66665.0,66664.0,1.01624702]
[1718660487467,0.00085,66665.0,66664.0,1.01624641]
[1718660487914,0.00085,66665.0,66664.0,1.31625841]
[1718660489505,0.00085,66665.0,66664.0,1.29625841]
[1718660489890,0.00085,66665.0,66664.0,1.31625841]
[1718660490121,0.00085,66665.0,66664.0,1.29625841]
[1718660490645,0.00085,66665.0,66664.0,1.31625841]
[1718660491417,0.00085,66665.0,66664.0,1.01624641]
[1718660491763,0.00085,66665.0,66664.0,1.29625841]
[1718660491999,0.00085,66665.0,66664.0,0.99624641]
[1718660492148,0.00085,66665.0,66664.0,1.29625841]
[1718660496288,0.00085,66665.0,66664.0,1.31625841]
[1718660498346,0.00085,66665.0,66664.0,0.89173517]
[1718660498554,0.00085,66665.0,66664.0,1.01624451]
[1718660500340,0.02986578,66676.0,66675.0,0.00834824]
[1718660500545,0.0857,66676.0,66675.0,0.00834824]
[1718660501949,0.0977,66676.0,66675.0,0.00834824]
[1718660502368,0.0957,66676.0,66675.0,0.00934824]
[1718660502612,0.1027,66676.0,66675.0,0.00934824]
[1718660502809,0.0927,66676.0,66675.0,0.00834824]
[1718660503260,0.0977,66676.0,66675.0,0.00834824]
[1718660503619,0.012,66676.0,66675.0,0.00834824]
[1718660503832,0.012,66676.0,66675.0,0.14403225]
[1718660504034,0.012,66676.0,66675.0,0.13285517]
[1718660504230,0.0977,66676.0,66675.0,0.14403225]
[1718660505304,0.012,66676.0,66675.0,0.14403225]
[1718660505551,0.012,66676.0,66675.0,0.16403225]
[1718660505661,0.012,66676.0,66675.0,0.31401325]
[1718660505871,0.012,66676.0,66675.0,0.76670413]
[1718660506070,0.007,66676.0,66675.0,1.06666613]
[1718660506262,0.007,66676.0,66675.0,0.76670413]
[1718660506484,0.0857,66679.0,66678.0,0.00834824]
[1718660506728,0.0857,66679.0,66678.0,0.15283615]
[1718660506935,0.0857,66679.0,66678.0,0.1640098]
[1718660507519,0.0857,66679.0,66678.0,0.38991452]
[1718660509123,0.0867,66679.0,66678.0,0.39591452]
[1718660509601,0.0867,66679.0,66678.0,0.70086352]
[1718660510017,0.02382777,66689.0,66688.0,0.00834824]
[1718660510185,0.10952777,66689.0,66688.0,0.00834824]
[1718660510653,0.10952777,66689.0,66687.0,0.00834824]
[1718660510832,0.02382777,66689.0,66688.0,0.00834824]
[1718660510997,0.10952777,66689.0,66688.0,0.00834824]
[1718660512162,0.14480722,66689.0,66688.0,0.00934824]
[1718660512567,0.15280722,66689.0,66688.0,0.01034824]
[1718660514538,0.12897945,66689.0,66688.0,0.01034824]
[1718660514935,0.12897945,66689.0,66688.0,0.002]
[1718660515768,0.12897945,66689.0,66688.0,0.01034824]
[1718660517751,0.1007,66689.0,66688.0,0.002]
[1718660517968,0.015,66689.0,66688.0,0.01317873]
[1718660518171,0.1007,66689.0,66688.0,0.01317873]
[1718660518403,0.1007,66689.0,66688.0,0.02152697]
[1718660518611,0.1007,66689.0,66688.0,0.01034824]
[1718660519648,0.015,66689.0,66688.0,0.01034824]
[1718660519904,0.1007,66689.0,66688.0,0.01034824]
[1718660523303,0.1007,66689.0,66688.0,0.002]
[1718660526068,0.1007,66689.0,66688.0,0.01034824]
[1718660527736,0.015,66689.0,66688.0,0.01034824]
[1718660527908,0.1007,66689.0,66688.0,0.01034824]
[1718660530510,0.1007,66689.0,66688.0,0.02151053]
[1718660530710,0.1007,66689.0,66688.0,0.01034824]
[1718660530967,0.1007,66689.0,66688.0,0.02151053]
[1718660531173,0.1007,66689.0,66688.0,0.01034824]
[1718660531361,0.1007,66689.0,66688.0,0.02151053]
[1718660531614,0.015,66689.0,66688.0,0.01034824]
[1718660531858,0.1007,66689.0,66688.0,0.01034824]
[1718660532837,0.1007,66689.0,66688.0,0.02151053]
[1718660533364,0.20820124,66689.0,66688.0,0.02151053]
[1718660535509,0.015,66689.0,66688.0,0.37659748]
[1718660535692,0.1007,66689.0,66688.0,0.37659748]
[1718660536270,0.1007,66689.0,66688.0,0.36824924]
[1718660536469,0.1007,66689.0,66688.0,0.37659748]
[1718660538947,0.1007,66689.0,66688.0,0.37753248]
[1718660539152,0.10155,66689.0,66688.0,0.37753248]
[1718660539588,0.10155,66689.0,66688.0,0.37752608]
[1718660541774,0.01585,66689.0,66688.0,0.37752608]
[1718660541976,0.09455,66689.0,66688.0,0.37652608]
[1718660542379,0.09055,66689.0,66688.0,0.37552608]
[1718660542792,0.09255,66689.0,66688.0,0.37552608]
[1718660543105,0.00685,66689.0,66688.0,0.37552608]
[1718660543356,0.09255,66689.0,66688.0,0.37552608]
[1718660543582,0.09255,66689.0,66688.0,0.39552608]
[1718660543706,0.00685,66689.0,66688.0,0.52547808]
[1718660543909,0.08855,66689.0,66688.0,0.39552608]
[1718660544153,0.08855,66689.0,66688.0,0.37552608]
[1718660544696,0.08855,66689.0,66688.0,0.39552608]
[1718660545554,0.00285,66689.0,66688.0,0.39552608]
[1718660545732,0.08855,66689.0,66688.0,0.39552608]
[1718660546335,0.00285,66689.0,66688.0,0.39552608]
[1718660546536,0.00285,66689.0,66688.0,0.37552608]
[1718660546839,0.08855,66689.0,66688.0,0.37552608]
[1718660547043,0.00285,66689.0,66688.0,0.37552608]
[1718660547445,0.00285,66689.0,66688.0,0.52547808]
[1718660547644,0.00285,66689.0,66688.0,0.37552608]
[1718660547847,0.08855,66689.0,66688.0,0.37552608]
[1718660548346,0.00285,66689.0,66688.0,0.39552608]
[1718660548526,0.08855,66689.0,66688.0,0.39552608]
[1718660548872,0.00285,66689.0,66688.0,0.54547808]
[1718660549015,0.00285,66689.0,66688.0,0.39552608]
[1718660550359,0.00285,66689.0,66688.0,0.39552034]
[1718660553206,0.00285,66689.0,66688.0,0.84537634]
[1718660553427,0.00285,66689.0,66688.0,1.14528034]
[1718660553643,0.00285,66689.0,66688.0,1.29800922]
[1718660554061,0.00085,66689.0,66688.0,1.29800922]
[1718660554463,0.00285,66689.0,66688.0,1.29800922]
[1718660554863,0.00085,66689.0,66688.0,1.29800922]
[1718660555090,0.00185,66689.0,66688.0,1.30600922]
[1718660556464,0.00285,66689.0,66688.0,1.31300922]
[1718660556665,0.00285,66689.0,66688.0,1.01310522]
[1718660559513,0.00285,66689.0,66688.0,1.31300922]
[1718660560345,0.00285,66689.0,66688.0,2.38977182]
[1718660560550,0.00285,66689.0,66688.0,2.44714095]
[1718660560693,0.00285,66689.0,66688.0,3.58474665]
[1718660560891,0.00285,66689.0,66688.0,3.08408725]
[1718660561136,0.00185,66689.0,66688.0,3.10608725]
[1718660561341,0.00185,66689.0,66688.0,3.09514095]
[1718660561588,0.00285,66689.0,66688.0,3.00024495]
[1718660561799,0.00085,66711.0,66710.0,0.00834824]
[1718660562209,0.00085,66711.0,66710.0,0.01944137]
[1718660562819,0.08655,66711.0,66710.0,0.01944137]
[1718660564178,0.08755,66711.0,66710.0,0.01944137]
[1718660565333,0.00185,66711.0,66710.0,0.01944137]
[1718660565697,0.08755,66711.0,66710.0,0.01944137]
[1718660567090,0.08755,66711.0,66710.0,0.00834824]
[1718660567701,0.00185,66711.0,66710.0,0.01942736]
[1718660567827,0.08755,66711.0,66710.0,0.01942736]
[1718660568032,0.08755,66711.0,66710.0,0.03942736]
[1718660568317,0.08755,66711.0,66710.0,0.01942736]
[1718660568695,0.08755,66711.0,66710.0,0.03942736]
[1718660569129,0.08755,66711.0,66710.0,0.01942736]
[1718660570777,0.08755,66711.0,66710.0,0.03942736]
[1718660572043,0.08755,66711.0,66710.0,0.01942736]
[1718660572802,0.08255,66711.0,66710.0,0.01942736]
[1718660573214,0.0834,66711.0,66710.0,0.01942736]
[1718660574381,0.00085,66711.0,66710.0,0.01942736]
[1718660574706,0.0044,66712.0,66711.0,0.00834824]
[1718660574940,0.0901,66712.0,66711.0,0.00834824]
[1718660575150,0.0044,66712.0,66711.0,0.01942243]
[1718660575356,0.0901,66712.0,66711.0,0.03942243]
[1718660575565,0.0901,66712.0,66711.0,0.01942243]
[1718660576699,0.0911,66712.0,66711.0,0.01942243]
[1718660576902,0.0054,66712.0,66711.0,0.03942243]
[1718660577111,0.0054,66712.0,66711.0,0.01942243]
[1718660577112,0.0064,66712.0,66711.0,0.01942243]
[1718660577322,0.0921,66712.0,66711.0,0.01942243]
[1718660577692,0.0064,66712.0,66711.0,0.01942243]
[1718660578049,0.0921,66712.0,66711.0,0.01942243]
[1718660581274,0.0919,66712.0,66711.0,0.01942243]
[1718660582502,0.0919,66712.0,66711.0,0.03942243]
[1718660583520,0.0919,66712.0,66711.0,0.18932243]
[1718660583521,0.0064,66712.0,66711.0,0.18932243]
[1718660583726,0.0919,66712.0,66711.0,0.18932243]
[1718660583926,0.0919,66712.0,66711.0,0.03942243]
[1718660584927,0.0919,66712.0,66711.0,0.15772243]
[1718660585945,0.0919,66712.0,66711.0,0.03942243]
[1718660586753,0.0919,66712.0,66711.0,0.01942243]
[1718660586958,0.0919,66712.0,66711.0,0.03942243]
[1718660589206,0.0909,66712.0,66711.0,0.03942243]
[1718660589422,0.0899,66712.0,66711.0,0.03942243]
[1718660589585,0.0899,66712.0,66711.0,0.04242243]